Cogmind - Beta 10.1 --- EXPLORER MODE // 2020.10.11 @ 23:10:49 Player: Darlorth Result: Self-destructed Performance ------------- Evolutions (5) 2500 Regions Visited (12) 2400 Robots Destroyed (176) 880 Value Destroyed (5911) 5911 Prototype IDs (5) 100 Alien Tech Used (0) 0 Bonus (3351) 3351 TOTAL SCORE: 15142 Bonus ------- High Alert Combat Kills 1478 Follower Combat Kills 670 Entered Garrisons 400 Used RIF Installer 1000 Aligned with FarCom 300 Friendly Fire -497 Cogmind --------- Core Integrity 855/1000 Matter 300/300 Energy 240/240 System Corruption 2% Temperature Cool (163) Movement Core (900) Ox17 Location -5/Factory Parts ------- > --- POWER (2) -------- Micro Fission Core Micro Fission Core > --- PROPULSION (4) --- Heavy Treads Heavy Treads > --- UTILITY (8) ------ Cryofiber Web Improved Cooling System Large Storage Unit Large Storage Unit Improved Medium Armor Plating Relay Coupler [Sentry] (2) Relay Coupler [Hunter] (6) > --- WEAPON (4) ------- Katana > --- INVENTORY (16) --- Micro Fission Core Heavy Treads Large Battery (300) Large Matter Pod (150) Advanced Targeting Computer Improved Light Armor Plating Improved Light Armor Plating Relay Coupler [NC] (39) Relay Coupler [NC] (52) Tesla Rifle Heavy Shock Bomb Launcher Mini Grenade Launcher Improved Remote Datajack Peak State ------------ > --- POWER ------------ Micro Fission Core Micro Fission Core > --- PROPULSION ------- Heavy Treads Heavy Treads > --- UTILITY ---------- Cryofiber Web Improved Cooling System Large Storage Unit Large Storage Unit Improved Light Armor Plating Relay Coupler [NC] Relay Coupler [Sentry] Relay Coupler [Hunter] > --- WEAPON ----------- Wave Gun Heavy Phase Cannon KE Penetrator Improved Remote Datajack > --- INVENTORY -------- Micro Fission Core Heavy Treads Large Battery Large Matter Pod Advanced Targeting Computer Improved Light Armor Plating Improved Light Armor Plating Improved Medium Armor Plating Relay Coupler [NC] Relay Coupler [NC] Tesla Rifle Heavy Shock Bomb Launcher Mini Grenade Launcher Katana [Rating: 87] Favorites ----------- Power Light Nuclear Core Engine F-cell Engine Power Core Light Nuclear Core Propulsion Armored Treads Treads Armored Treads Leg Aluminum Leg Utility Large Storage Unit Device Cryofiber Web Storage Large Storage Unit Processor Advanced Targeting Computer Hackware Relay Coupler [Sentry] Protection Improved Light Armor Plating Weapon AWS/Autocannon Energy Gun Medium Laser Energy Cannon Heavy Plasma Cannon Ballistic Gun Assault Rifle Ballistic Cannon AWS/Autocannon Launcher Mini Grenade Launcher Special Weapon Improved Remote Datajack Slashing Weapon Katana Special Melee Weapon Improved Datajack Build | -11 -10 -10 -10 -9 -8 -8 -8 -8 -6 -5 -5 -5 ------- Run | Scr Mat Min Exi Min Mat Sto Gar Rec Fac Fac Gar Fac Slots Evolved 11 | . 1 . . . 4 . . . 4 2 . . Power 1 | . . . . . 1 . . . . . . . Propulsion 2 | . . . . . 2 . . . . . . . Utility 6 | . . . . . 1 . . . 3 2 . . Weapon 2 | . 1 . . . . . . . 1 . . . Parts Attached 76 | 7 2 2 2 . 10 . . 2 16 2 14 19 Power 10 | 1 1 . . . 2 . . . 3 . 2 1 Engine 5 | 1 . . . . 1 . . . 3 . . . Core 5 | . 1 . . . 1 . . . . . 2 1 Reactor . | . . . . . . . . . . . . . Propulsion 13 | 2 . . . . 6 . . 2 . . 1 2 Treads 9 | . . . . . 4 . . 2 . . 1 2 Leg 4 | 2 . . . . 2 . . . . . . . Wheel . | . . . . . . . . . . . . . Hover . | . . . . . . . . . . . . . Flight . | . . . . . . . . . . . . . Utility 23 | 2 . 2 . . 2 . . . 6 2 3 6 Device 3 | . . 1 . . . . . . . 1 . 1 Storage 6 | 1 . . . . 1 . . . 2 1 1 . Processor 1 | . . . . . . . . . 1 . . . Hackware 5 | . . . . . . . . . . . 1 4 Protection 8 | 1 . 1 . . 1 . . . 3 . 1 1 Artifact . | . . . . . . . . . . . . . Weapon 30 | 2 1 . 2 . . . . . 7 . 8 10 Energy Gun 5 | 1 . . . . . . . . . . 1 3 Energy Cannon 3 | . . . . . . . . . . . 1 2 Ballistic Gun 6 | 1 1 . . . . . . . . . 3 1 Ballistic Cannon 1 | . . . 1 . . . . . . . . . Launcher 8 | . . . . . . . . . 6 . 2 . Special Weapon 2 | . . . . . . . . . . . . 2 Impact Weapon . | . . . . . . . . . . . . . Slashing Weapon 3 | . . . . . . . . . 1 . . 2 Piercing Weapon . | . . . . . . . . . . . . . Special Melee Weapon 2 | . . . 1 . . . . . . . 1 . Unidentified Prototypes 3 | . . 1 1 . . . . . 1 . . . Parts Lost 15 | . . . . . . . . . 4 . 6 5 Power 3 | . . . . . . . . . 3 . . . Propulsion 1 | . . . . . . . . . 1 . . . Utility 4 | . . . . . . . . . . . 2 2 Weapon 7 | . . . . . . . . . . . 4 3 Highest Loss Streak 5 | . . . . . . . . . 2 . 5 5 Average Slot Usage (%) 87 | . 97 100 83 75 77 83 83 83 89 93 97 85 Engine 2 | . 8 . . . 2 . . . 5 11 8 . Core 9 | . 3 12 12 12 13 16 16 16 4 . 2 8 Treads 15 | . . . . . 14 33 33 33 21 16 20 11 Leg 7 | . 25 25 25 25 13 . . . . . . . Device 2 | . . . . . . . . . . 5 5 9 Storage 15 | . 12 12 12 12 16 16 16 16 17 21 22 12 Processor 1 | . . . . . . . . . 5 5 5 1 Hackware 2 | . . . . . . . . . . . . 13 Protection 9 | . 12 12 12 12 8 8 8 8 11 11 10 4 Energy Gun 2 | . 12 12 4 . . . . . . . 1 2 Energy Cannon 1 | . . . . . . . . . . . 3 7 Ballistic Gun 5 | . 22 25 5 . . . . . . . 8 3 Ballistic Cannon 3 | . . . 7 12 8 8 8 8 . . . . Launcher 3 | . . . . . . . . . 13 16 5 1 Slashing Weapon 1 | . . . . . . . . . 5 5 1 . Naked Turns . | . . . . . . . . . . . . . Heaviest Build 92 | 17 21 21 76 76 86 86 86 86 86 85 89 92 Greatest Support 140 | 20 20 20 20 20 82 82 82 82 82 62 92 140 Greatest Overweight (x) 17 | 1 1 1 3 3 4 1 1 1 1 1 1 17 Average Overweight (x) . | . . 1 2 3 2 1 1 1 . 1 . . Largest Inventory Capacity 16 | 8 8 8 8 8 8 8 8 8 10 16 16 16 Average Capacity 10 | 5 8 8 8 8 8 8 8 8 8 15 16 16 Most Carried 16 | 4 6 8 8 8 8 8 8 8 10 9 16 16 Average Carried 9 | 1 4 7 7 8 7 8 7 7 7 8 12 15 Final Capacity 16 | 8 8 8 8 8 8 8 8 8 10 16 16 16 Final Carried 14 | 1 6 8 8 8 8 8 8 8 10 8 14 14 Class Distribution -------------------- 33% | Hacker-Skirmisher 30% | Hacker-Tank 14% | Bothacker-Mutant 9% | Hacker-Mutant 6% | Bothacker-Tank 3% | Bothacker-Skirmisher Dominant Class ---------------- Hacker-Tank | -10/Materials Hacker-Tank | -10/Mines Hacker-Tank | -10/Exiles Hacker-Skirmisher | -9/Mines Hacker-Skirmisher | -8/Materials Hacker-Skirmisher | -8/Storage Hacker-Skirmisher | -8/Garrison Hacker-Skirmisher | -8/Recycling Hacker-Tank | -6/Factory Hacker-Tank | -5/Factory Bothacker-Tank | -5/Garrison Bothacker-Mutant | -5/Factory Resources | -11 -10 -10 -10 -9 -8 -8 -8 -8 -6 -5 -5 -5 ----------- Run | Scr Mat Min Exi Min Mat Sto Gar Rec Fac Fac Gar Fac Matter Collected 2778 | 220 130 55 210 5 97 . . 20 884 63 551 543 Remotely . | . . . . . . . . . . . . . Salvage Created 4835 | . 277 119 . . 363 620 407 210 1599 . 811 429 Parts 279 | . 22 5 . . 10 30 23 24 109 . 40 16 Haulers Intercepted 1 | . 1 . . . . . . . . . . . Recyclers Shooed 3 | . . . . . . . . 1 2 . . . Parts Field Recycled . | . . . . . . . . . . . . . Retrieved Matter . | . . . . . . . . . . . . . Parts Self-Destructed . | . . . . . . . . . . . . . Prevented . | . . . . . . . . . . . . . Kills | -11 -10 -10 -10 -9 -8 -8 -8 -8 -6 -5 -5 -5 ------- Run | Scr Mat Min Exi Min Mat Sto Gar Rec Fac Fac Gar Fac Combat Hostiles Destroyed 132 | . 7 . . . 13 22 12 20 32 . 19 7 Melee 3 | . . . . . . . . . 2 . 1 . Guns 19 | . 7 . . . . . . . . . 9 3 Cannons 74 | . . . . . 13 22 12 20 . . 3 4 AOE 35 | . . . . . . . . . 30 . 5 . Classes Destroyed 19 | . 3 3 . . 3 . 1 1 6 . 2 . Worker 18 | . . 2 . . . . . . 16 . . . Builder 9 | . . . . . . . . . 9 . . . Tunneler 1 | . . 1 . . . . . . . . . . Hauler 1 | . 1 . . . . . . . . . . . Recycler 6 | . . 1 . . . . . 3 2 . . . Mechanic 1 | . . . . . . . . . 1 . . . Operator 1 | . . . . . 1 . . . . . . . Drone 20 | . . . . . . . . 20 . . . . Watcher 5 | . . . . . 1 2 . . 2 . . . Swarmer 19 | . 2 . . . 1 2 1 . 3 . 10 . Grunt 58 | . 5 . . . 12 14 2 . 15 . 5 5 Brawler 8 | . . . . . . . 6 . 1 . 1 . Duelist 2 | . . . . . . . . . 1 . . 1 Protector 1 | . . . . . . . . . 1 . . . Sentry 13 | . . . . . 2 6 3 . 2 . . . Specialist 1 | . . . . . . . . . . . 1 . Hunter 5 | . . . . . . . . . 4 . 1 . Programmer 6 | . . . . . . . . . 5 . . 1 Behemoth 1 | . . . . . . . . . . . 1 . Best Kill Streak 17 | . 4 3 . . 4 8 5 4 17 . 5 3 Combat Bots Only 10 | . 4 . . . 4 8 5 3 10 . 5 3 Max Kills in Single Turn 5 | . 1 1 . . 1 1 1 1 5 . 1 1 Gunslinging . | . . . . . . . . . . . . . Exploded 4 | . . . . . . . . . 4 . 1 . Melee 1 | . . . . . . . . . 1 . 1 . Uniques/NPCs Destroyed . | . . . . . . . . . . . . . Combat | -11 -10 -10 -10 -9 -8 -8 -8 -8 -6 -5 -5 -5 -------- Run | Scr Mat Min Exi Min Mat Sto Gar Rec Fac Fac Gar Fac Damage Taken 4162 | . 53 . . . 195 202 114 . 1137 . 1026 1435 Core 290 | . 16 . . . 16 18 . . 95 . 24 121 Absorbed by Shields 22 | . . . . . . . . . . . 22 . Core Remaining (%) 93 | 100 . . . 93 . . . 93 88 . . . Volleys Fired 138 | . 15 5 . . . . . . 33 . 37 48 Largest 4 | . 3 3 . . . . . . 3 . 4 3 Hottest 221 | . 90 90 . . . . . . 125 . 210 221 Shots Fired 513 | . 44 15 . . 57 54 28 42 77 . 111 85 Gun 163 | . 44 15 . . . . . . . . 72 32 Cannon 226 | . . . . . 57 54 28 42 . . 19 26 Launcher 97 | . . . . . . . . . 77 . 20 . Special 27 | . . . . . . . . . . . . 27 Kinetic 301 | . 30 10 . . 57 54 28 42 . . 63 17 Thermal 79 | . 14 5 . . . . . . . . 28 32 Explosive 69 | . . . . . . . . . 58 . 11 . Electromagnetic 37 | . . . . . . . . . 19 . 9 9 Robot Hit Streak 125 | . 23 29 . . 43 96 124 125 20 . 60 54 Robot Miss Streak 2 | . 1 . . . 1 . . 2 2 . 1 2 Penetration Max 1 | . . . . . . . . . . . 1 . Secondary Targets 2 | . 2 . . . . . . . . . . . Max Gunslinging Chain 1 | . 1 . . . . . . . . . . . Autonomous 182 | . . . . . 57 54 28 43 . . . . Shots Hit Robots 422 | . 34 6 . . 56 54 28 34 57 . 82 71 Core Hits 273 | . 15 5 . . 17 26 12 19 124 . 40 15 Critical Hits 19 | . 1 . . . 3 4 2 4 . . 2 3 Critical Kills 6 | . 1 . . . . 3 1 1 . . . . Critical Parts Destroyed 13 | . . . . . 3 1 1 3 . . 2 3 Melee Attacks 8 | . . . . . . . . . 4 . 4 . Impact . | . . . . . . . . . . . . . Slashing 7 | . . . . . . . . . 4 . 3 . Piercing . | . . . . . . . . . . . . . Sneak Attacks . | . . . . . . . . . . . . . Combat Hostiles . | . . . . . . . . . . . . . Follow-up Attacks . | . . . . . . . . . . . . . Damage Inflicted 25153 | . 335 99 . . 4287 4329 1931 2884 7403 . 2577 1308 Guns 1987 | . 335 99 . . . . . . . . 956 597 Cannons 14577 | . . . . . 4285 4315 1931 2866 . . 469 711 Explosions 8421 | . . . . . . . . . 7337 . 1084 . Melee 134 | . . . . . . . . . 66 . 68 . Ramming 34 | . . . . . 2 14 . 18 . . . . Kinetic 14734 | . 182 49 . . 4285 4315 1931 2866 . . 821 285 Thermal 1984 | . 153 50 . . . . . . 281 . 633 867 Explosive 6598 | . . . . . . . . . 6034 . 564 . Electromagnetic 1669 | . . . . . . . . . 1022 . 491 156 Impact . | . . . . . . . . . . . . . Slashing 134 | . . . . . . . . . 66 . 68 . Piercing . | . . . . . . . . . . . . . Highest Corruption 2 | . . . . . . . . . 1 . 1 2 Average Corruption 1 | . . . . . . . . . 1 . 1 1 Corruption Purged . | . . . . . . . . . . . . . Effects 21 | . . . . . . . . . . . 4 17 Message Errors 6 | . . . . . . . . . . . 1 5 Heat Flow Errors 4 | . . . . . . . . . . . . 4 Energy Discharges 3 | . . . . . . . . . . . 2 1 Data Loss (minor) 4 | . . . . . . . . . . . . 4 Targeting Errors 4 | . . . . . . . . . . . 1 3 Overload Shots . | . . . . . . . . . . . . . Overflow Damage 2625 | . . . . . 888 438 114 712 444 . 23 6 Projectiles 2158 | . . . . . 888 438 114 712 . . . 6 Explosions 460 | . . . . . . . . . 444 . 16 . Melee 7 | . . . . . . . . . . . 7 . Knockbacks 41 | . . . . . 15 12 2 12 . . . . Impact . | . . . . . . . . . . . . . Kinetic 35 | . . . . . 13 9 2 11 . . . . Secondary 6 | . . . . . 2 3 . 1 . . . . Self-Inflicted Damage 51 | . . . . . . . . . 51 . . . Shots 8 | . . . . . . . . . 8 . . . Rammed 5 | . . . . . 1 3 . 1 . . . . Targets Rammed 7 | . . . . . 1 3 . 3 . . . . Kicked . | . . . . . . . . . . . . . Crushed 2 | . . . . . . . . 2 . . . . Highest Temperature 764 | . 225 90 . . 7 1 1 . 182 . 310 764 Average Temperature 125 | . 82 33 . . 5 1 1 . 55 . 100 271 Received Heat Transfer 1281 | . 33 . . . 126 126 54 . 273 . 285 384 Effects 30 | . . . . . . . . . . . 1 29 Shutdowns 6 | . . . . . . . . . . . . 6 Energy Bleed 3 | . . . . . . . . . . . 1 2 Interference 5 | . . . . . . . . . . . . 5 Matter Decay 4 | . . . . . . . . . . . . 4 Short Circuit 3 | . . . . . . . . . . . . 3 Damage (minor) 3 | . . . . . . . . . . . . 3 Damage (major) 6 | . . . . . . . . . . . . 6 Siege Activations . | . . . . . . . . . . . . . Robots Corrupted 1 | . . . . . . . . . . . 1 . Combat Hostiles 1 | . . . . . . . . . . . 1 . Parts Fried 3 | . . . . . . . . . 2 . . 1 Impact Corruptions 3 | . . . . . 2 1 . . . . . . Robots Melted . | . . . . . . . . . . . . . Combat Hostiles . | . . . . . . . . . . . . . Parts Melted 4 | . 1 . . . . . . . . . 2 1 Heat Transferred 2853 | . 444 148 . . . . . . 250 . 984 1027 Parts Sabotaged . | . . . . . . . . . . . . . Parts Stolen . | . . . . . . . . . . . . . Parts Stripped . | . . . . . . . . . . . . . Power Chain Reactions 3 | . . . . . . . . . 2 . 1 . Missiles Intercepted . | . . . . . . . . . . . . . Alert | -11 -10 -10 -10 -9 -8 -8 -8 -8 -6 -5 -5 -5 ------- Run | Scr Mat Min Exi Min Mat Sto Gar Rec Fac Fac Gar Fac Peak Influence 1463 | . 167 45 . 52 257 619 574 254 1463 526 903 383 Initial 934 | . . 45 . . 14 22 306 186 934 526 283 351 Average 372 | . 82 23 . 8 101 288 475 155 1102 526 637 197 Maximum Alert Level 4 | . . . . . 1 2 2 1 4 2 3 1 Low Security (%) 48 | 100 100 100 . 100 79 49 . 76 . . . 58 Level 1 16 | . . . . . 20 20 11 23 . . 18 41 Level 2 13 | . . . . . . 30 88 . . 100 41 . Level 3 11 | . . . . . . . . . 37 . 40 . Level 4 9 | . . . . . . . . . 62 . . . Level 5 . | . . . . . . . . . . . . . High Security . | . . . . . . . . . . . . . Max Security . | . . . . . . . . . . . . . Squads Dispatched 25 | . . . . . 5 3 . . 8 . . 9 Investigation 3 | . . . . . . 1 . . . . . 2 Extermination 4 | . . . . . . . . . 2 . . 2 Reinforcement 7 | . . . . . 2 . . . 3 . . 2 Assault 2 | . . . . . . . . . 2 . . . Garrison 9 | . . . . . 3 2 . . 1 . . 3 Intercept . | . . . . . . . . . . . . . Construction Impeded 4 | . . . . . . . . . 3 . . 1 Haulers Reinforced 1 | . . . . . . . . . . . . 1 Stealth | -11 -10 -10 -10 -9 -8 -8 -8 -8 -6 -5 -5 -5 --------- Run | Scr Mat Min Exi Min Mat Sto Gar Rec Fac Fac Gar Fac Distress Signals 5 | . 1 . . . . 2 . . 1 . . 1 Communications Jammed 11 | . . . . . . . . . . . . 11 Distress Signals 11 | . . . . . . . . . . . . 11 Times Spotted 186 | . 9 . . 2 17 23 12 26 41 . 22 34 Peak Tracking Total 8 | . 5 . . 2 3 6 4 3 8 . 5 6 Tactical Retreats 6 | . . . . . 2 1 1 . . . 1 1 Traps | -11 -10 -10 -10 -9 -8 -8 -8 -8 -6 -5 -5 -5 ------- Run | Scr Mat Min Exi Min Mat Sto Gar Rec Fac Fac Gar Fac Traps Triggered 14 | . . . . . . . 4 . 1 . 7 2 Indirectly 1 | . . . . . . . . . . . 1 . Trap Hack Attempts . | . . . . . . . . . . . . . Triggered . | . . . . . . . . . . . . . Disarmed . | . . . . . . . . . . . . . Reprogrammed . | . . . . . . . . . . . . . Reused . | . . . . . . . . . . . . . Traps Extracted . | . . . . . . . . . . . . . Installed . | . . . . . . . . . . . . . Triggered . | . . . . . . . . . . . . . Machines | -11 -10 -10 -10 -9 -8 -8 -8 -8 -6 -5 -5 -5 ---------- Run | Scr Mat Min Exi Min Mat Sto Gar Rec Fac Fac Gar Fac Machines Disabled 15 | . . . . . . . . . 12 . 2 1 Max in Single Turn 2 | . . . . . . . . . 2 . 1 . Garrison Access 1 | . . . . . 1 . . . . . . . Garrison Relay 2 | . . . . . . . . . . . 2 . Machines Sabotaged . | . . . . . . . . . . . . . Garrisons Compromised . | . . . . . . . . . . . . . Overloaded Fab Kills . | . . . . . . . . . . . . . Fab Network Shutdowns . | . . . . . . . . . . . . . Hacking | -11 -10 -10 -10 -9 -8 -8 -8 -8 -6 -5 -5 -5 --------- Run | Scr Mat Min Exi Min Mat Sto Gar Rec Fac Fac Gar Fac Machines Accessed 23 | . . 1 3 . 3 5 . 7 1 1 . 2 Terminals 13 | . . . . . 2 4 . 4 1 . . 2 Fabricators . | . . . . . . . . . . . . . Repair Stations . | . . . . . . . . . . . . . Recycling Units 3 | . . . . . . . . 3 . . . . Scanalyzers . | . . . . . . . . . . . . . Garrison Access 3 | . . . . . 1 1 . . . 1 . . Total Hacks 108 | . . 1 42 . 9 15 . 27 5 1 . 8 Successful 85 | . . 1 42 . 7 9 . 18 3 1 . 4 Failed 23 | . . . . . 2 6 . 9 2 . . 4 Catastrophic . | . . . . . . . . . . . . . Database Lockouts . | . . . . . . . . . . . . . Manual 18 | . . . 1 . 3 2 . . 5 . . 7 Terminals 52 | . . . . . 5 14 . 20 5 . . 8 Fabricators . | . . . . . . . . . . . . . Repair Stations . | . . . . . . . . . . . . . Recycling Units 7 | . . . . . . . . 7 . . . . Scanalyzers . | . . . . . . . . . . . . . Garrison Access 6 | . . . . . 4 1 . . . 1 . . Terminal Hacks 75 | . . 1 42 . 4 8 . 14 3 . . 3 Record 45 | . . . 42 . . 2 . 1 . . . . Part Schematic 3 | . . . . . . 2 . 1 . . . . Prototype ID Bank 1 | . . . . . . . . 1 . . . . Open Door 1 | . . 1 . . . . . . . . . . Branch Access Points 2 | . . . . . 1 1 . . . . . . Machine Index 1 | . . . . . . . . . . . . 1 Terminal Index 2 | . . . . . . 1 . . . . . 1 Garrison Index 2 | . . . . . . . . 1 . . . 1 Alert Level 6 | . . . . . 1 1 . 3 1 . . . Unreport Threat 3 | . . . . . . . . 1 2 . . . Dispatch Records 2 | . . . . . 1 . . 1 . . . . Extermination Status 1 | . . . . . . . . 1 . . . . Recall Reinforcements 1 | . . . . . . 1 . . . . . . Registered Components 2 | . . . . . 1 . . 1 . . . . Zone Layout 3 | . . . . . . . . 3 . . . . Fabricator Hacks . | . . . . . . . . . . . . . Repair Station Hacks . | . . . . . . . . . . . . . Recycling Unit Hacks 4 | . . . . . . . . 4 . . . . Report Inventory 2 | . . . . . . . . 2 . . . . Retrieve Components 2 | . . . . . . . . 2 . . . . Scanalyzer . | . . . . . . . . . . . . . Garrison Access Hacks 3 | . . . . . 1 1 . . . 1 . . Unlock Access 2 | . . . . . . 1 . . . 1 . . Seal Access 1 | . . . . . 1 . . . . . . . Unauthorized Hacks 3 | . . . . . 2 . . . . . . 1 Terminals 1 | . . . . . . . . . . . . 1 Operators 1 | . . . . . . . . . . . . 1 Fabricators . | . . . . . . . . . . . . . Repair Stations . | . . . . . . . . . . . . . Recycling Units . | . . . . . . . . . . . . . Scanalyzers . | . . . . . . . . . . . . . Garrison Access 2 | . . . . . 2 . . . . . . . Reprogram 2 | . . . . . 2 . . . . . . . Data Cores Recovered 1 | . . . . . 1 . . . . . . . Used 1 | . . . . . 1 . . . . . . . Hacking Detections 15 | . . . . . 1 4 . 6 1 1 . 2 Full Trace Events 6 | . . . . . . 2 . 2 . . . 2 Feedback Events . | . . . . . . . . . . . . . Feedback Blocked . | . . . . . . . . . . . . . Robot Schematics Acquired . | . . . . . . . . . . . . . Robots Built . | . . . . . . . . . . . . . Matter . | . . . . . . . . . . . . . Time . | . . . . . . . . . . . . . Total Robot Build Rating . | . . . . . . . . . . . . . Part Schematics Acquired 3 | . . . . . . 2 . 1 . . . . Parts Built . | . . . . . . . . . . . . . Matter . | . . . . . . . . . . . . . Time . | . . . . . . . . . . . . . Total Part Build Rating . | . . . . . . . . . . . . . Parts Repaired . | . . . . . . . . . . . . . Time . | . . . . . . . . . . . . . Parts Recycled . | . . . . . . . . . . . . . Recycled Matter . | . . . . . . . . . . . . . Retrieved Matter . | . . . . . . . . . . . . . Retrieved Components 4 | . . . . . . . . 4 . . . . Parts Scanalyzed . | . . . . . . . . . . . . . Part Schematics Acquired . | . . . . . . . . . . . . . Parts Damaged . | . . . . . . . . . . . . . Bothacking | -11 -10 -10 -10 -9 -8 -8 -8 -8 -6 -5 -5 -5 ------------ Run | Scr Mat Min Exi Min Mat Sto Gar Rec Fac Fac Gar Fac Used RIF Installer 2 | . . . . . . . 1 . . . 1 . Signal Jammer 1 | . . . . . . . . . . . 1 . Robots Hacked 11 | . . . . . . . . . . . 1 10 Non-combat 1 | . . . . . . . . . . . . 1 Combat 10 | . . . . . . . . . . . 1 9 Robot Hacks Applied 19 | . . . . . . . . . . . 1 18 parse_system 1 | . . . . . . . . . . . . 1 generate_anomaly 1 | . . . . . . . . . . . . 1 find_fabricator 1 | . . . . . . . . . . . . 1 recall_reinforcements 1 | . . . . . . . . . . . . 1 find_shortcuts 1 | . . . . . . . . . . . . 1 find_garrison 1 | . . . . . . . . . . . . 1 link_fov 1 | . . . . . . . . . . . . 1 scatter_targeting 1 | . . . . . . . . . . . . 1 wipe_record 1 | . . . . . . . . . . . . 1 reboot_system 1 | . . . . . . . . . . . . 1 overwrite_iff 1 | . . . . . . . . . . . . 1 formatsys_high 8 | . . . . . . . . . . . 1 7 Relay Couplers Released 8 | . . . . . . . . . . . 8 . Machine Destruction 8 | . . . . . . . . . . . 8 . Attached 5 | . . . . . . . . . . . 1 4 Robots Rewired . | . . . . . . . . . . . . . Allies Hacked 1 | . . . . . . . . . . . . 1 Hacks Repelled . | . . . . . . . . . . . . . Allies | -11 -10 -10 -10 -9 -8 -8 -8 -8 -6 -5 -5 -5 -------- Run | Scr Mat Min Exi Min Mat Sto Gar Rec Fac Fac Gar Fac Total Allies 15 | . . 4 . . 2 . . . . . 1 8 Largest Group 4 | . . 4 4 3 4 . . . . . 1 4 Highest-Rated Group 180 | . . 71 71 40 55 . . . . . 49 180 Highest-Rated Ally 49 | . . 31 31 16 16 . . . . . 49 49 Total Orders 12 | . . . . . 4 . . . . . . 8 STAY 5 | . . . . . 2 . . . . . . 3 FOLLOW 5 | . . . . . 1 . . . . . . 4 GUARD 1 | . . . . . . . . . . . . 1 AID 1 | . . . . . 1 . . . . . . . Ally Attacks 141 | . . . . 6 69 . . . . . 5 61 Total Damage 3233 | . . . . 82 728 . . . . . 75 2348 Kills 28 | . . . . 2 6 . . . . . 1 19 Allies Corrupted 1 | . . . . . . . . . . . . 1 Allies Melted 1 | . . . . . . . . . . . . 1 Intel | -11 -10 -10 -10 -9 -8 -8 -8 -8 -6 -5 -5 -5 ------- Run | Scr Mat Min Exi Min Mat Sto Gar Rec Fac Fac Gar Fac Robot Analysis Total . | . . . . . . . . . . . . . Derelict Logs Recovered . | . . . . . . . . . . . . . Drone Launches . | . . . . . . . . . . . . . Drone Recoveries . | . . . . . . . . . . . . . Exploration | -11 -10 -10 -10 -9 -8 -8 -8 -8 -6 -5 -5 -5 ------------- Run | Scr Mat Min Exi Min Mat Sto Gar Rec Fac Fac Gar Fac Turns Passed 8808 | 68 163 1003 648 164 1387 335 468 580 1182 68 1293 1449 Spaces Moved 4751 | 57 87 642 340 79 683 185 261 313 603 36 673 792 Core 34 | 32 . . . . . . . . . . . 2 Treads 3346 | . . . . . 485 185 261 313 603 36 673 790 Legs 1371 | 25 87 642 340 79 198 . . . . . . . Wheels . | . . . . . . . . . . . . . Hover . | . . . . . . . . . . . . . Flight . | . . . . . . . . . . . . . Fastest Speed 50 | 50 120 150 150 210 152 178 178 178 161 181 161 155 Average Speed 170 | 93 126 150 183 210 199 178 178 180 169 181 165 161 Slowest Speed 900 | 120 150 150 210 210 240 178 178 181 181 181 181 900 Overloaded Moves . | . . . . . . . . . . . . . Propulsion Burnouts . | . . . . . . . . . . . . . Robots Hopped . | . . . . . . . . . . . . . Cave-ins Triggered . | . . . . . . . . . . . . . Exploration Rate (%) 37 | 4 20 96 60 20 35 34 40 70 16 1 78 13 Regions Visited 12 Branch Regions 5 Pre-discovered Areas 1 | . . . 1 . . . . . . . . . Known Exits Taken 10 | 1 1 1 1 1 1 1 . 1 1 1 . . Unknown Exits Taken . | . . . . . . . . . . . . . Scrap Searched 3 | . . 2 . 1 . . . . . . . . Spaces Dug 14 | . . . . . . . . . 1 . 13 . Terrain Destroyed 611 | . . . . . 4 3 3 8 523 . 61 9 Melee 1 | . . . . . . . . . 1 . . . Projectile 32 | . . . . . 4 3 3 8 . . 5 9 AOE 578 | . . . . . . . . . 522 . 56 . Terrain Rammed . | . . . . . . . . . . . . . Walls Destroyed . | . . . . . . . . . . . . . Machines Disabled . | . . . . . . . . . . . . . Actions | -11 -10 -10 -10 -9 -8 -8 -8 -8 -6 -5 -5 -5 --------- Run | Scr Mat Min Exi Min Mat Sto Gar Rec Fac Fac Gar Fac Total 5194 | 71 109 673 371 78 710 188 266 328 687 38 768 907 Wait 80 | . . 17 10 . 3 . . 6 4 . 9 31 Move 4740 | 56 86 641 339 78 682 185 260 312 602 36 671 792 Hop . | . . . . . . . . . . . . . Pick Up 76 | 8 6 5 9 . 5 . 2 1 16 . 17 7 Fast Attach 17 | . . . . . 7 . . 1 6 . 1 2 Attach 35 | 7 1 1 1 . 2 . . . 7 2 8 6 Detach 1 | . . . . . . . . . 1 . . . Swap 24 | . 1 1 1 . 1 . . 1 3 . 5 11 Drop 54 | . . 3 11 . 9 . 2 3 11 . 5 10 Fire 138 | . 15 5 . . . . . . 33 . 37 48 Melee 8 | . . . . . . . . . 4 . 4 . Ram . | . . . . . . . . . . . . . Kick . | . . . . . . . . . . . . . Crush 7 | . . . . . 1 3 . 3 . . . . Escape Stasis 13 | . . . . . . . 2 . . . 11 . Rewire 1 | . . . . . . . . 1 . . . . Trap . | . . . . . . . . . . . . . Miscellaneous . | . . . . . . . . . . . . . Route ------- -11/Scrapyard -10/Materials -10/Mines (discovered 2 exits: *Mat / *Exi) -10/Exiles -9/Mines (discovered 2 exits: *Mat x2) -8/Materials (discovered 2 exits: *Fac / *Sto) -8/Storage (discovered 2 exits: Rec / Gar) -8/Garrison -8/Recycling -6/Factory -5/Factory -5/Garrison (discovered 3 exits: *Fac x3) -5/Factory (discovered 1 exit: *Upp) History --------- Turn | Location | Event 6 | -11/Scrapyard | Identified exit to Materials 6 | -11/Scrapyard | Discovered exit to Materials (range 16) 69 | -11/Scrapyard | Entered Materials 69 | -10/Materials | Evolved 1 slot: Weapon x1 197 | -10/Materials | Identified exit to Mines 197 | -10/Materials | Discovered exit to Mines (range 10) 232 | -10/Materials | Entered Mines 241 | -10/Mines | Assisted by bots powering up and referring to "LRC-V3" 269 | -10/Mines | Received a Rocket Launcher from a helpful Derelict 400 | -10/Mines | Build established: Hacker-Tank 934 | -10/Mines | Identified exit to Materials 934 | -10/Mines | Discovered exit to Materials (range 8) 943 | -10/Mines | Received a Mining Laser from a helpful Derelict 1110 | -10/Mines | Found the Drone Emporium 1155 | -10/Mines | Found Prototype Device 1156 | -10/Mines | Identified Thief Drone Bay 1209 | -10/Mines | Deemed a non-threat by the Exiles lab entrance 1209 | -10/Mines | Identified exit to Exiles 1209 | -10/Mines | Discovered exit to Exiles (range 5) 1235 | -10/Mines | Entered Exiles 1235 | -10/Exiles | Accompanied by 4 allies 1282 | -10/Exiles | Met 8R-AWN 1310 | -10/Exiles | Met EX-HEX 1379 | -10/Exiles | Met EX-BIN 1402 | -10/Exiles | Aligned with FarCom system 1403 | -10/Exiles | Given EX-Vault access code 1459 | -10/Exiles | Opened EX-Vault 1467 | -10/Exiles | Found Prototype Ballistic Cannon 1469 | -10/Exiles | Identified AWS/Autocannon 1544 | -10/Exiles | Warned to stay clear of 0b10 Research branches 1609 | -10/Exiles | Met EX-DEC 1620 | -10/Exiles | Learned location of Zion (-6) 1730 | -10/Exiles | Identified exit to Mines 1730 | -10/Exiles | Discovered exit to Mines (range 12) 1883 | -10/Exiles | Left Exiles lab with AWS/Autocannon 1883 | -10/Exiles | Entered Mines 1883 | -9/Mines | Accompanied by 3 allies 1921 | -9/Mines | Identified exit to Materials 1921 | -9/Mines | Discovered exit to Materials (range 12) 1946 | -9/Mines | Discovered exit to Materials (range 14) 2047 | -9/Mines | Entered Materials 2047 | -8/Materials | Accompanied by 3 allies 2047 | -8/Materials | Evolved 4 slots: Power x1, Propulsion x2, Utility x1 2183 | -8/Materials | Build established: Hacker-Skirmisher 2337 | -8/Materials | Identified exit to Storage 2480 | -8/Materials | Garrison activated, responded to threat 3300 | -8/Materials | Identified exit to Factory 3300 | -8/Materials | Discovered exit to Factory (range 16) 3434 | -8/Materials | Entered Storage 3561 | -8/Storage | Identified exit to Recycling 3588 | -8/Storage | Garrison activated, responded to threat 3648 | -8/Storage | Destroyed 8 combat bots 3769 | -8/Storage | Identified exit to Garrison 3769 | -8/Storage | Entered Garrison 3782 | -8/Garrison | Installed Relay Interface Framework 3952 | -8/Garrison | Triggered checkpoint 4024 | -8/Garrison | Discovered exit to Recycling (range 13) 4094 | -8/Garrison | Triggered checkpoint 4237 | -8/Garrison | Entered Recycling 4264 | -8/Recycling | Spotter reported a threat 4309 | -8/Recycling | Spotter reported a threat 4309 | -8/Recycling | Spotter reported a threat 4309 | -8/Recycling | Spotter reported a threat 4366 | -8/Recycling | Spotter reported a threat 4374 | -8/Recycling | Spotter reported a threat 4382 | -8/Recycling | Spotter reported a threat 4405 | -8/Recycling | Spotter reported a threat 4408 | -8/Recycling | Spotter reported a threat 4426 | -8/Recycling | Spotter reported a threat 4463 | -8/Recycling | Spotter reported a threat 4527 | -8/Recycling | Spotter reported a threat 4527 | -8/Recycling | Spotter reported a threat 4527 | -8/Recycling | Spotter reported a threat 4628 | -8/Recycling | Spotter reported a threat 4636 | -8/Recycling | Spotter reported a threat 4650 | -8/Recycling | Spotter reported a threat 4681 | -8/Recycling | Spotter reported a threat 4683 | -8/Recycling | Spotter reported a threat 4707 | -8/Recycling | Spotter reported a threat 4713 | -8/Recycling | Spotter reported a threat 4743 | -8/Recycling | Spotter reported a threat 4753 | -8/Recycling | Spotter reported a threat 4799 | -8/Recycling | Spotter reported a threat 4799 | -8/Recycling | Spotter reported a threat 4803 | -8/Recycling | Identified exit to Factory 4803 | -8/Recycling | Discovered exit to Factory (range 8) 4805 | -8/Recycling | Spotter reported a threat 4817 | -8/Recycling | Entered Factory 4817 | -6/Factory | Evolved 4 slots: Utility x3, Weapon x1 5167 | -6/Factory | First assault squad dispatched 5269 | -6/Factory | Destroyed 10 combat bots 5595 | -6/Factory | Build established: Hacker-Tank 5909 | -6/Factory | Garrison activated, responded to threat 5980 | -6/Factory | Identified exit to Factory 5980 | -6/Factory | Discovered exit to Factory (range 6) 5999 | -6/Factory | Entered another Factory area 5999 | -5/Factory | Evolved 2 slots: Utility x2 6067 | -5/Factory | Identified exit to Garrison 6067 | -5/Factory | Entered Garrison 6226 | -5/Garrison | Triggered checkpoint 6304 | -5/Garrison | Garrison Relay disabled 6377 | -5/Garrison | Triggered checkpoint 6377 | -5/Garrison | Triggered checkpoint 6394 | -5/Garrison | Spotted B-75 Beast 6432 | -5/Garrison | Destroyed B-75 Beast 6462 | -5/Garrison | Lost 5 parts (2u3w) 6514 | -5/Garrison | Triggered checkpoint 6554 | -5/Garrison | Identified exit to Factory 6554 | -5/Garrison | Discovered exit to Factory (range 11) 6598 | -5/Garrison | Triggered checkpoint 6633 | -5/Garrison | Garrison Relay disabled 6908 | -5/Garrison | Triggered checkpoint 6928 | -5/Garrison | Build established: Bothacker-Tank 6947 | -5/Garrison | Discovered exit to Factory (range 7) 7189 | -5/Garrison | Discovered exit to Factory (range 15) 7227 | -5/Garrison | Expanded RIF knowledge: Signal Jamming 7360 | -5/Garrison | Entered Factory 7360 | -5/Factory | Accompanied by 1 ally 7475 | -5/Factory | Build established: Bothacker-Mutant 7970 | -5/Factory | Identified exit to Upper Caves 7970 | -5/Factory | Discovered exit to Upper Caves (range 12) 8809 | -5/Factory | Self-destructed Last Messages --------------- 08789_ Overheating: Relay Coupler [Hunter] damaged (-7). 08789_ K-01 Serf collects debris. 08789_ Broken KE Penetrator destroyed. 08790_ Power failure, Mic. Fission Core shutdown. 08790_ Hvy. Treads permanently disabled. 08790_ Overheating: Short circuit. 08790_ Penetrated by Slug. 08792_ K-01 Serf collects debris. 08793_ Overheating: Energy bleed (-60). 08794_ Overheating: Matter decay (-45). 08796_ K-01 Serf collects debris. 08802_ Penetrated by Slug. 08803_ K-01 Serf collects debris. 08804_ Y-64 Sentinel emerges from the garrison. 08805_ S-27 Virus destroyed. 08805_ Slug penetrates G-50 Soldier. 08805_ G-50 Soldier destroyed. 08806_ K-01 Serf collects debris. 08808_ Slug penetrates S-27 Virus. 08809_ K-01 Serf collects debris. Map ----- +----------------------------------------------------+ | ?????????????????????????????????????????????????? | | ?????????????????????????????????????????????????? | | ??????????????????????? ?????????????????????????? | | ??????????????????????? ?????????????????????????? | | ??????????????????????? ??? ????????????????????? | | ??????????????????????? "?? ?"??????????????????? | | ??????????????????????? "?" """ #???????????????? | | ??????????????????????? "?" """ #???????????????? | | ???????????????????????? #???????????????? | | ???????????????????????? ????????????????? | | ???????????????????????? ????????????????? | | ????????????????????????#"+"" ""###??????????????? | | ????????????????????????#"%" ###????????????? | | ????????????????????#####"" #????????????? | | ????????????????????# = "#####????????? | | ????????????????????# * *! % ????????? | | ????????????????????# ! ! = k # #?????????? | | ????????????????????# % ; #?????????? | | ?????????????????? # != ; #?????????? | | ??????????h??????? u# % ; #?????????? | | ?????????????? t [ [ ; #?????????????? | | ????????????# # gY * ; #?????????????? | | ????????????# ???#] " " ###?????????????? | | ????????????# # Y"%" = #???????????????? | | ????????????? ; ""G"" %*Y #???????????????? | | ????????????????? # @%s #???????????????? | | ???????????????? ##########+###???????????????? | | ????????????????? ??????????# #?????????????????? | | ?????????????????????????????# #?????????????????? | | ??????????????? ???????????# #?????????????????? | | ????????????# ???????????# #?????????????????? | | ????????????# ??????????# #?????????????????? | | ????????????# ??????????# #??????? ?????????? | | ????????????# ########## ##### #???????? | | ????????????# #???????? | | ????????????# #???????? | | ????????????# """"""""" """"""""" #???????? | | ????????????# #???????? | | ????????????#"" """"""""" """"""""" ?????????? | | ????????????#" #???????? | | ????????????#"F """"""""" """"""""" ???????? | | ????????????#"" #????????? | | ????????????# #????????? | | ????????????# #????????? | | ????????????# ##############+###+##????????? | | ????????????# #????????????????????????????? | | ????????????# #????????????????????????????? | | ????????????# #????????????????????????????? | | ????????????# #????????????????????????????? | | ????????????# #????????????????????????????? | +----------------------------------------------------+ Best States ------------- Heat Dissipation 67 Energy Generation 33 Energy Capacity 1200 Matter Stores 450 Matter Capacity 450 Sight Range 16 Terrain Scan Density 10 Base Temperature (-) 100 Armor Coverage 300 Resistance: KI 35 Resistance: TH 35 Resistance: EX 35 Resistance: EM 35 Resistance: I 35 Resistance: S 35 Resistance: P 35 Evasion (%) 50 Targeting Accuracy 8 Recoil Reduction 4 Offensive Hacking 20 Relay Coupler Types 79 Relay Coupler Value 3 Item Schematics ----------------- Imp. Gravmag System | -8/Storage | Hacked Cesium-ion Thruster | -8/Storage | Hacked Hyp. Gauss Rifle | -8/Recycling | Hacked Robot Schematics ------------------ None Fabricated ------------ Nothing Alien Tech Used ----------------- None Achievements -------------- Factory Defaults No Signal \\IAMDERELICT Challenges ------------ None Game ------ Seed SpikedLightCanceller Manual? 0 Play Time 01:40:34 Cumulative 103.9 hours Start 2020.10.11 @ 21:23:56 End 2020.10.11 @ 23:10:49 Sessions 1 Manual Loads 0 Difficulty Explorer Special Mode None Game No. 138 Rogue 102 Adventurer 0 Explorer 36 Win Type - Total 1 Types 1/0/0/0/0/0/0/0/0 Lore% 24 Gallery% 53 Achievement% 40 Wizard Run 0 Options --------- ASCII 0 Keyboard 0 Movement Mouse Keybinds 0 Fullscreen 1 Font 12/Terminus Map View 83x54 Tactical HUD 1 Map Filters NONE Filters NONE Steam 1 RUN: 82898b08-c7d3-4d6e-99ac-164493577505